[Event "Early-Titled-Tuesday-Blitz-March-12-2024"]
[Site "Chess.com"]
[Date "2024.03.12"]
[Round "5"]
[White "BogdanDeac"]
[Black "AlmasRakhmatullaev"]
[Result "0-1"]
[WhiteElo "3041"]
[BlackElo "2829"]
[TimeControl "180+1"]
[EndTime "8:55:31 PDT"]
[Termination "AlmasRakhmatullaev won by resignation"]

1. d4 {[%clk 0:03:00.9]} 1... d5 {[%clk 0:02:56]} 2. Nf3 {[%clk 0:03:00.9]} 2...
c6 {[%clk 0:02:55.1]} 3. Bf4 {[%clk 0:03:01]} 3... Nf6 {[%clk 0:02:54.5]} 4. e3
{[%clk 0:03:01.2]} 4... a6 {[%clk 0:02:51.5]} 5. c4 {[%clk 0:02:54.4]} 5... Bf5
{[%clk 0:02:29.4]} 6. Qb3 {[%clk 0:02:50.6]} 6... Ra7 {[%clk 0:02:19.2]} 7. Nc3
{[%clk 0:02:34.4]} 7... e6 {[%clk 0:02:16.9]} 8. Rc1 {[%clk 0:02:33.6]} 8...
Nbd7 {[%clk 0:02:11.1]} 9. h3 {[%clk 0:02:29.1]} 9... Be7 {[%clk 0:02:05.5]} 10.
c5 {[%clk 0:02:22.7]} 10... h6 {[%clk 0:01:55.3]} 11. Be2 {[%clk 0:02:20.8]}
11... Qc8 {[%clk 0:01:46.3]} 12. Qa4 {[%clk 0:02:12.5]} 12... O-O {[%clk
0:01:32]} 13. O-O {[%clk 0:02:07.8]} 13... Bd8 {[%clk 0:01:29.1]} 14. b4 {[%clk
0:02:07.2]} 14... Ra8 {[%clk 0:01:18.4]} 15. Qb3 {[%clk 0:01:34.3]} 15... Bc7
{[%clk 0:01:17.7]} 16. Bxc7 {[%clk 0:01:34.4]} 16... Qxc7 {[%clk 0:01:18.6]} 17.
a4 {[%clk 0:01:34.7]} 17... e5 {[%clk 0:01:15.3]} 18. b5 {[%clk 0:01:33.5]}
18... axb5 {[%clk 0:01:14.4]} 19. axb5 {[%clk 0:01:34.4]} 19... Rae8 {[%clk
0:01:02.3]} 20. Ra1 {[%clk 0:01:08.2]} 20... exd4 {[%clk 0:00:52.9]} 21. Nxd4
{[%clk 0:01:07.6]} 21... Bxh3 {[%clk 0:00:36]} 22. bxc6 {[%clk 0:00:13.7]} 22...
bxc6 {[%clk 0:00:35.7]} 23. gxh3 {[%clk 0:00:13.4]} 23... Rxe3 {[%clk
0:00:34.1]} 24. Bf3 {[%clk 0:00:13.8]} 24... Rd3 {[%clk 0:00:32.3]} 25. Rad1
{[%clk 0:00:11.1]} 25... Nxc5 {[%clk 0:00:29.1]} 26. Qc2 {[%clk 0:00:11.2]}
26... Rxd1 {[%clk 0:00:21.5]} 27. Nxd1 {[%clk 0:00:11.2]} 27... Nce4 {[%clk
0:00:19.3]} 28. Ne3 {[%clk 0:00:06.2]} 28... Qf4 {[%clk 0:00:19]} 29. Bxe4
{[%clk 0:00:05.7]} 29... Nxe4 {[%clk 0:00:19.9]} 30. Qxc6 {[%clk 0:00:05.2]}
30... Ng5 {[%clk 0:00:18.6]} 31. Ne2 {[%clk 0:00:03.6]} 31... Qf3 {[%clk
0:00:12.6]} 32. Ng3 {[%clk 0:00:03]} 32... d4 {[%clk 0:00:09.4]} 33. Qxf3 {[%clk
0:00:02.1]} 33... Nxf3+ {[%clk 0:00:10.3]} 34. Kg2 {[%clk 0:00:02.5]} 34... Nh4+
{[%clk 0:00:10.7]} 35. Kh2 {[%clk 0:00:03.1]} 35... dxe3 {[%clk 0:00:11.5]} 36.
fxe3 {[%clk 0:00:04]} 36... f5 {[%clk 0:00:11.2]} 37. e4 {[%clk 0:00:03.1]}
37... f4 {[%clk 0:00:11.3]} 38. Ne2 {[%clk 0:00:03.7]} 38... g5 {[%clk
0:00:10.9]} 39. Nd4 {[%clk 0:00:03.8]} 39... Re8 {[%clk 0:00:11.2]} 40. Re1
{[%clk 0:00:03.6]} 40... Rd8 {[%clk 0:00:11.7]} 0-1

[Event "Early-Titled-Tuesday-Blitz-March-12-2024"]
[Site "Chess.com"]
[Date "2024.03.12"]
[Round "5"]
[White "GeorgiosSouleidis"]
[Black "MightyMike_009"]
[Result "0-1"]
[WhiteElo "2667"]
[BlackElo "2868"]
[TimeControl "180+1"]
[EndTime "8:55:33 PDT"]
[Termination "MightyMike_009 won on time"]

1. e4 {[%clk 0:03:00.9]} 1... e5 {[%clk 0:03:00]} 2. Nc3 {[%clk 0:03:00.4]} 2...
Nf6 {[%clk 0:02:59.6]} 3. d4 {[%clk 0:02:59.9]} 3... exd4 {[%clk 0:02:57.7]} 4.
Qxd4 {[%clk 0:03:00.8]} 4... Nc6 {[%clk 0:02:57.1]} 5. Qd3 {[%clk 0:03:01.1]}
5... Bb4 {[%clk 0:02:55.2]} 6. Bd2 {[%clk 0:03:00.9]} 6... d6 {[%clk 0:02:52.4]}
7. O-O-O {[%clk 0:03:00.6]} 7... O-O {[%clk 0:02:36.4]} 8. Qg3 {[%clk 0:03:00]}
8... Ne5 {[%clk 0:02:19.1]} 9. f3 {[%clk 0:02:50.1]} 9... Nh5 {[%clk 0:02:00.1]}
10. Qe1 {[%clk 0:02:39]} 10... Qe8 {[%clk 0:01:17.5]} 11. g4 {[%clk 0:02:12.8]}
11... Bxc3 {[%clk 0:01:17]} 12. Bxc3 {[%clk 0:02:09.9]} 12... Nf4 {[%clk
0:01:17.2]} 13. Qg3 {[%clk 0:01:56.3]} 13... Ne6 {[%clk 0:00:53.7]} 14. Bxe5
{[%clk 0:01:09.6]} 14... dxe5 {[%clk 0:00:54.6]} 15. Qxe5 {[%clk 0:01:10.2]}
15... a5 {[%clk 0:00:49.7]} 16. Bc4 {[%clk 0:01:01.8]} 16... c6 {[%clk
0:00:48.2]} 17. Ne2 {[%clk 0:00:55.5]} 17... b5 {[%clk 0:00:48.1]} 18. Bxe6
{[%clk 0:00:55.3]} 18... Bxe6 {[%clk 0:00:49]} 19. Nd4 {[%clk 0:00:44]} 19...
Bxa2 {[%clk 0:00:40.3]} 20. Qxe8 {[%clk 0:00:43.7]} 20... Rfxe8 {[%clk 0:00:40]}
21. Nxc6 {[%clk 0:00:44.2]} 21... a4 {[%clk 0:00:34]} 22. Nb4 {[%clk 0:00:40.9]}
22... Bc4 {[%clk 0:00:32.5]} 23. Rd4 {[%clk 0:00:37.3]} 23... g6 {[%clk
0:00:31.9]} 24. h4 {[%clk 0:00:34.1]} 24... h6 {[%clk 0:00:26.9]} 25. Rhd1
{[%clk 0:00:29.9]} 25... Kg7 {[%clk 0:00:26.5]} 26. Re1 {[%clk 0:00:16.6]} 26...
Re6 {[%clk 0:00:25.5]} 27. f4 {[%clk 0:00:15.3]} 27... Rae8 {[%clk 0:00:21.5]}
28. e5 {[%clk 0:00:14.6]} 28... g5 {[%clk 0:00:21.5]} 29. hxg5 {[%clk
0:00:14.7]} 29... hxg5 {[%clk 0:00:22.4]} 30. Nd3 {[%clk 0:00:04.1]} 30... gxf4
{[%clk 0:00:20.5]} 31. Nxf4 {[%clk 0:00:03.4]} 31... Rxe5 {[%clk 0:00:20.5]} 32.
Nh5+ {[%clk 0:00:04]} 32... Kf8 {[%clk 0:00:20.4]} 33. Rxe5 {[%clk 0:00:03.3]}
33... Rxe5 {[%clk 0:00:21.3]} 34. Rf4 {[%clk 0:00:03.7]} 34... Re1+ {[%clk
0:00:20.7]} 35. Kd2 {[%clk 0:00:04.1]} 35... Re2+ {[%clk 0:00:20.6]} 36. Kc3
{[%clk 0:00:04.3]} 36... Rg2 {[%clk 0:00:20.7]} 37. Nf6 {[%clk 0:00:04.5]} 37...
Kg7 {[%clk 0:00:19.5]} 38. Ne4 {[%clk 0:00:03.8]} 38... Be6 {[%clk 0:00:17.1]}
39. Nc5 {[%clk 0:00:03.5]} 39... Bxg4 {[%clk 0:00:16.3]} 40. Kb4 {[%clk
0:00:02.7]} 40... Be2 {[%clk 0:00:15]} 41. Ne4 {[%clk 0:00:01.6]} 41... Bc4
{[%clk 0:00:14.4]} 0-1

[Event "Early-Titled-Tuesday-Blitz-March-12-2024"]
[Site "Chess.com"]
[Date "2024.03.12"]
[Round "5"]
[White "Kielinkei"]
[Black "eagleclaw07"]
[Result "1/2-1/2"]
[WhiteElo "2573"]
[BlackElo "2779"]
[TimeControl "180+1"]
[EndTime "8:55:33 PDT"]
[Termination "Game drawn by repetition"]

1. c4 {[%clk 0:03:00.9]} 1... Nf6 {[%clk 0:03:00.9]} 2. g3 {[%clk 0:03:01.2]}
2... e6 {[%clk 0:03:01.8]} 3. Bg2 {[%clk 0:03:01.7]} 3... d5 {[%clk 0:03:01.8]}
4. Nf3 {[%clk 0:03:02.3]} 4... Be7 {[%clk 0:03:02.4]} 5. O-O {[%clk 0:03:02.5]}
5... O-O {[%clk 0:03:03.3]} 6. b3 {[%clk 0:03:03]} 6... dxc4 {[%clk 0:03:02.3]}
7. bxc4 {[%clk 0:03:03]} 7... c5 {[%clk 0:03:03.2]} 8. Bb2 {[%clk 0:03:02.3]}
8... Bd7 {[%clk 0:03:02.9]} 9. Ne5 {[%clk 0:02:59.7]} 9... Qc7 {[%clk
0:03:03.6]} 10. d3 {[%clk 0:02:54.5]} 10... Bc6 {[%clk 0:03:02]} 11. Nxc6 {[%clk
0:02:54.3]} 11... Nxc6 {[%clk 0:03:02.9]} 12. Nc3 {[%clk 0:02:54.4]} 12... Rad8
{[%clk 0:02:58.1]} 13. Rb1 {[%clk 0:02:47.5]} 13... Nd7 {[%clk 0:02:45.7]} 14.
Qc1 {[%clk 0:02:21.4]} 14... Bf6 {[%clk 0:02:38.5]} 15. Nb5 {[%clk 0:02:13.2]}
15... Qb8 {[%clk 0:02:38.3]} 16. Bxf6 {[%clk 0:02:09.4]} 16... Nxf6 {[%clk
0:02:39.2]} 17. Qb2 {[%clk 0:02:07.7]} 17... Na5 {[%clk 0:01:52.4]} 18. Nc3
{[%clk 0:01:59.5]} 18... b6 {[%clk 0:01:50]} 19. Ne4 {[%clk 0:01:55]} 19... Nxe4
{[%clk 0:01:49.8]} 20. Bxe4 {[%clk 0:01:55.9]} 20... Rd4 {[%clk 0:01:48.9]} 21.
Bg2 {[%clk 0:01:49.3]} 21... Rfd8 {[%clk 0:01:47]} 22. Qc3 {[%clk 0:01:47.1]}
22... h6 {[%clk 0:01:41.3]} 23. Rfd1 {[%clk 0:01:45.4]} 23... Qc7 {[%clk
0:01:39.9]} 24. e3 {[%clk 0:01:23.2]} 24... R4d6 {[%clk 0:01:40]} 25. Rbc1
{[%clk 0:01:23]} 25... Qd7 {[%clk 0:01:38.2]} 26. Bf1 {[%clk 0:01:17.8]} 26...
Qa4 {[%clk 0:01:30.8]} 27. Rd2 {[%clk 0:01:14.4]} 27... Nc6 {[%clk 0:01:28]} 28.
Rcd1 {[%clk 0:01:09.3]} 28... e5 {[%clk 0:01:21.3]} 29. Bg2 {[%clk 0:01:00.3]}
29... f6 {[%clk 0:01:09.4]} 30. Bxc6 {[%clk 0:00:55.5]} 30... Qxc6 {[%clk
0:01:07.2]} 31. d4 {[%clk 0:00:52.8]} 31... cxd4 {[%clk 0:01:01.9]} 32. exd4
{[%clk 0:00:53.7]} 32... exd4 {[%clk 0:01:01.8]} 33. Rxd4 {[%clk 0:00:54]} 33...
Rxd4 {[%clk 0:01:01.9]} 34. Rxd4 {[%clk 0:00:54.3]} 34... Rc8 {[%clk 0:01:00.6]}
35. Qd3 {[%clk 0:00:52.8]} 35... Re8 {[%clk 0:00:51.3]} 36. Rd8 {[%clk
0:00:50.6]} 36... Rxd8 {[%clk 0:00:50.1]} 37. Qxd8+ {[%clk 0:00:50.8]} 37... Kf7
{[%clk 0:00:50.9]} 38. Qd4 {[%clk 0:00:49.9]} 38... Qa4 {[%clk 0:00:43]} 39.
Qd5+ {[%clk 0:00:44.7]} 39... Kf8 {[%clk 0:00:40.7]} 40. Qd8+ {[%clk 0:00:43]}
40... Qe8 {[%clk 0:00:38.7]} 41. Qd6+ {[%clk 0:00:36.7]} 41... Qe7 {[%clk
0:00:39.2]} 42. Qd5 {[%clk 0:00:33.9]} 42... Qc7 {[%clk 0:00:19.8]} 43. Kg2
{[%clk 0:00:32.9]} 43... Ke7 {[%clk 0:00:20.3]} 44. h4 {[%clk 0:00:29.7]} 44...
Qd8 {[%clk 0:00:17.4]} 45. Qe4+ {[%clk 0:00:27.8]} 45... Kf7 {[%clk 0:00:13.3]}
46. Qb7+ {[%clk 0:00:25.5]} 46... Qe7 {[%clk 0:00:13.5]} 47. Qd5+ {[%clk
0:00:26.2]} 47... Qe6 {[%clk 0:00:13.3]} 48. Qb7+ {[%clk 0:00:26.1]} 48... Qe7
{[%clk 0:00:07.7]} 49. Qd5+ {[%clk 0:00:26.8]} 49... Kf8 {[%clk 0:00:07.5]} 50.
Qa8+ {[%clk 0:00:26.9]} 50... Kf7 {[%clk 0:00:06.3]} 51. Qd5+ {[%clk 0:00:27.5]}
1/2-1/2

[Event "Early-Titled-Tuesday-Blitz-March-12-2024"]
[Site "Chess.com"]
[Date "2024.03.12"]
[Round "5"]
[White "Byniolus"]
[Black "dropstoneDP"]
[Result "0-1"]
[WhiteElo "2824"]
[BlackElo "3003"]
[TimeControl "180+1"]
[EndTime "8:55:34 PDT"]
[Termination "dropstoneDP won on time"]

1. d4 {[%clk 0:03:00.9]} 1... d5 {[%clk 0:02:57]} 2. Nf3 {[%clk 0:02:59.6]} 2...
Nf6 {[%clk 0:02:56]} 3. Bf4 {[%clk 0:02:58.4]} 3... c5 {[%clk 0:02:55.8]} 4. c3
{[%clk 0:02:58.9]} 4... Nc6 {[%clk 0:02:49.1]} 5. e3 {[%clk 0:02:57.8]} 5... Qb6
{[%clk 0:02:47.6]} 6. Qb3 {[%clk 0:02:58.2]} 6... c4 {[%clk 0:02:42.6]} 7. Qc2
{[%clk 0:02:58.4]} 7... g6 {[%clk 0:01:47.1]} 8. Nbd2 {[%clk 0:02:53.3]} 8...
Bf5 {[%clk 0:01:46.9]} 9. Qc1 {[%clk 0:02:53.6]} 9... Nh5 {[%clk 0:01:45.8]} 10.
Be5 {[%clk 0:02:50.3]} 10... f6 {[%clk 0:01:45.1]} 11. Bg3 {[%clk 0:02:50.1]}
11... Nxg3 {[%clk 0:01:44.1]} 12. hxg3 {[%clk 0:02:51]} 12... Bg7 {[%clk
0:01:43.8]} 13. e4 {[%clk 0:02:43.9]} 13... dxe4 {[%clk 0:01:22.5]} 14. Nxc4
{[%clk 0:02:43.1]} 14... Qc7 {[%clk 0:01:22.5]} 15. Nfd2 {[%clk 0:02:35.7]}
15... O-O-O {[%clk 0:01:22.2]} 16. Ne3 {[%clk 0:02:31.2]} 16... h5 {[%clk
0:01:16.2]} 17. Qc2 {[%clk 0:02:22.6]} 17... Kb8 {[%clk 0:01:11.1]} 18. O-O-O
{[%clk 0:02:11.3]} 18... Bh6 {[%clk 0:01:08.1]} 19. Re1 {[%clk 0:01:13.1]} 19...
e5 {[%clk 0:01:06.7]} 20. d5 {[%clk 0:01:07.3]} 20... Bxe3 {[%clk 0:01:04.7]}
21. Rxe3 {[%clk 0:01:05.6]} 21... Rxd5 {[%clk 0:01:04.9]} 22. Nxe4 {[%clk
0:01:06.1]} 22... Rhd8 {[%clk 0:01:02.3]} 23. Bc4 {[%clk 0:00:58.9]} 23... Rd2
{[%clk 0:00:46.7]} 24. Qxd2 {[%clk 0:00:54.2]} 24... Rxd2 {[%clk 0:00:46.9]} 25.
Nxd2 {[%clk 0:00:55.1]} 25... Nd4 {[%clk 0:00:19.5]} 26. Bd3 {[%clk 0:00:46.1]}
26... a6 {[%clk 0:00:18.9]} 27. Kb1 {[%clk 0:00:43.3]} 27... Ne6 {[%clk
0:00:16.4]} 28. Bxf5 {[%clk 0:00:36.3]} 28... gxf5 {[%clk 0:00:17.3]} 29. Rxh5
{[%clk 0:00:37]} 29... Qd6 {[%clk 0:00:16.6]} 30. Kc2 {[%clk 0:00:27.1]} 30...
f4 {[%clk 0:00:16.5]} 31. Rd3 {[%clk 0:00:22.4]} 31... Qc6 {[%clk 0:00:16.4]}
32. Rh6 {[%clk 0:00:09.5]} 32... Nc5 {[%clk 0:00:14.3]} 33. Rd8+ {[%clk
0:00:05.2]} 33... Ka7 {[%clk 0:00:14.7]} 34. gxf4 {[%clk 0:00:05.4]} 34... Qa4+
{[%clk 0:00:14.9]} 35. Kc1 {[%clk 0:00:03.4]} 35... Qxf4 {[%clk 0:00:14.7]} 36.
Rh7 {[%clk 0:00:01.8]} 36... Qxf2 {[%clk 0:00:14.4]} 37. Rc8 {[%clk 0:00:01.6]}
37... Qxg2 {[%clk 0:00:11.7]} 0-1

[Event "Early-Titled-Tuesday-Blitz-March-12-2024"]
[Site "Chess.com"]
[Date "2024.03.12"]
[Round "5"]
[White "IMRosen"]
[Black "szachuspl"]
[Result "1/2-1/2"]
[WhiteElo "2709"]
[BlackElo "2540"]
[TimeControl "180+1"]
[EndTime "8:55:34 PDT"]
[Termination "Game drawn by repetition"]

1. e4 {[%clk 0:02:55.7]} 1... g6 {[%clk 0:02:58.6]} 2. d4 {[%clk 0:02:53.8]}
2... Bg7 {[%clk 0:02:59]} 3. Nf3 {[%clk 0:02:54.3]} 3... d6 {[%clk 0:02:59.3]}
4. Bc4 {[%clk 0:02:54.8]} 4... c6 {[%clk 0:02:58.9]} 5. Bb3 {[%clk 0:02:52.5]}
5... e6 {[%clk 0:02:59]} 6. O-O {[%clk 0:02:48]} 6... Ne7 {[%clk 0:02:58.8]} 7.
Re1 {[%clk 0:02:47.5]} 7... O-O {[%clk 0:02:58.6]} 8. c3 {[%clk 0:02:46.5]} 8...
Nd7 {[%clk 0:02:55.9]} 9. Nbd2 {[%clk 0:02:46.8]} 9... b5 {[%clk 0:02:50.4]} 10.
a4 {[%clk 0:02:45.2]} 10... bxa4 {[%clk 0:02:42.2]} 11. Bxa4 {[%clk 0:02:44.8]}
11... Nb6 {[%clk 0:02:42.5]} 12. Bc2 {[%clk 0:02:45.5]} 12... a5 {[%clk
0:02:41.9]} 13. Nf1 {[%clk 0:02:46]} 13... Qc7 {[%clk 0:02:34.3]} 14. Ng3 {[%clk
0:02:42.5]} 14... c5 {[%clk 0:02:34.5]} 15. h4 {[%clk 0:02:40.7]} 15... cxd4
{[%clk 0:02:29.1]} 16. cxd4 {[%clk 0:02:41.1]} 16... Bd7 {[%clk 0:02:29.7]} 17.
h5 {[%clk 0:02:39.1]} 17... Rfc8 {[%clk 0:02:29.6]} 18. Bd3 {[%clk 0:02:39.3]}
18... d5 {[%clk 0:02:28.3]} 19. e5 {[%clk 0:02:33.9]} 19... a4 {[%clk
0:02:28.7]} 20. Bg5 {[%clk 0:02:28.4]} 20... Nf5 {[%clk 0:02:28.8]} 21. Nxf5
{[%clk 0:02:22.8]} 21... exf5 {[%clk 0:02:29.2]} 22. Qd2 {[%clk 0:02:00.6]}
22... Nc4 {[%clk 0:02:27.8]} 23. Qe2 {[%clk 0:01:57.6]} 23... Qb7 {[%clk
0:02:22.4]} 24. Reb1 {[%clk 0:01:20.3]} 24... Be6 {[%clk 0:02:22.4]} 25. Bf6
{[%clk 0:01:12]} 25... Bf8 {[%clk 0:02:22.4]} 26. Ng5 {[%clk 0:01:09.9]} 26...
Qd7 {[%clk 0:02:06.1]} 27. Qf3 {[%clk 0:00:55.9]} 27... h6 {[%clk 0:02:03.6]}
28. Nh3 {[%clk 0:00:37.6]} 28... Nd2 {[%clk 0:02:02.7]} 29. Qg3 {[%clk
0:00:38.1]} 29... Qe8 {[%clk 0:01:55]} 30. Rd1 {[%clk 0:00:29.4]} 30... Ne4
{[%clk 0:01:53]} 31. Qe3 {[%clk 0:00:24.9]} 31... Nxf6 {[%clk 0:01:50.8]} 32.
exf6 {[%clk 0:00:25.8]} 32... Bd7 {[%clk 0:01:50.6]} 33. Qe5 {[%clk 0:00:21]}
33... Qxe5 {[%clk 0:01:48.1]} 34. dxe5 {[%clk 0:00:21.9]} 34... g5 {[%clk
0:01:48.8]} 35. f4 {[%clk 0:00:20.8]} 35... g4 {[%clk 0:01:48.6]} 36. Nf2 {[%clk
0:00:21.2]} 36... Rab8 {[%clk 0:01:46.9]} 37. Rd2 {[%clk 0:00:20.9]} 37... Bc5
{[%clk 0:01:45.9]} 38. Kf1 {[%clk 0:00:20.7]} 38... Be3 {[%clk 0:01:45.9]} 39.
Re2 {[%clk 0:00:19.1]} 39... Bxf4 {[%clk 0:01:46.2]} 40. Nd1 {[%clk 0:00:10.2]}
40... Re8 {[%clk 0:01:42.7]} 41. Nc3 {[%clk 0:00:10.7]} 41... Bxe5 {[%clk
0:01:32.9]} 42. Nxd5 {[%clk 0:00:11.1]} 42... Kf8 {[%clk 0:01:30.4]} 43. Ne7
{[%clk 0:00:02.6]} 43... Bxf6 {[%clk 0:01:24.5]} 44. Nxf5 {[%clk 0:00:02.3]}
44... Bxf5 {[%clk 0:01:24.8]} 45. Bxf5 {[%clk 0:00:02.5]} 45... Bxb2 {[%clk
0:01:24]} 46. Rxe8+ {[%clk 0:00:01.5]} 46... Kxe8 {[%clk 0:01:23.4]} 47. Rxa4
{[%clk 0:00:02.4]} 47... g3 {[%clk 0:01:20.7]} 48. Rg4 {[%clk 0:00:03]} 48...
Rb5 {[%clk 0:01:14.5]} 49. Bd3 {[%clk 0:00:02.3]} 49... Rxh5 {[%clk 0:01:10.9]}
50. Rxg3 {[%clk 0:00:02.8]} 50... Be5 {[%clk 0:01:10.5]} 51. Rh3 {[%clk
0:00:03]} 51... Rxh3 {[%clk 0:00:57.3]} 52. gxh3 {[%clk 0:00:03.9]} 52... Ke7
{[%clk 0:00:57.8]} 53. Kg2 {[%clk 0:00:04.7]} 53... Kf6 {[%clk 0:00:58.5]} 54.
Be2 {[%clk 0:00:05.6]} 54... Kg5 {[%clk 0:00:59.1]} 55. Bf3 {[%clk 0:00:06.5]}
55... Kf4 {[%clk 0:00:58.7]} 56. Ba8 {[%clk 0:00:07.4]} 56... f5 {[%clk
0:00:57.8]} 57. Bf3 {[%clk 0:00:08.3]} 57... Bf6 {[%clk 0:00:58]} 58. Ba8 {[%clk
0:00:09.2]} 58... Bh4 {[%clk 0:00:58.6]} 59. Bf3 {[%clk 0:00:10]} 59... Ke3
{[%clk 0:00:59.3]} 60. Ba8 {[%clk 0:00:10.9]} 60... Ke2 {[%clk 0:00:58.3]} 61.
Bf3+ {[%clk 0:00:11.8]} 61... Ke1 {[%clk 0:00:58.9]} 62. Ba8 {[%clk 0:00:12.6]}
62... f4 {[%clk 0:00:59.4]} 63. Bf3 {[%clk 0:00:13.5]} 63... Kd2 {[%clk
0:00:59.5]} 64. Ba8 {[%clk 0:00:14.4]} 64... Ke3 {[%clk 0:01:00.4]} 65. Bf3
{[%clk 0:00:15.3]} 65... Kd4 {[%clk 0:00:59.8]} 66. Ba8 {[%clk 0:00:16.2]} 66...
Ke5 {[%clk 0:01:00.4]} 67. Bf3 {[%clk 0:00:17.1]} 67... Bg3 {[%clk 0:01:01]} 68.
Ba8 {[%clk 0:00:18]} 68... h5 {[%clk 0:01:01.4]} 69. Kf3 {[%clk 0:00:18.7]}
69... h4 {[%clk 0:01:02.3]} 70. Be4 {[%clk 0:00:18.8]} 70... Kd4 {[%clk
0:01:02.7]} 71. Bf5 {[%clk 0:00:19.1]} 71... Ke5 {[%clk 0:01:03.1]} 72. Bg4
{[%clk 0:00:20]} 72... Kd4 {[%clk 0:01:03.3]} 73. Bf5 {[%clk 0:00:20.3]} 73...
Ke5 {[%clk 0:01:00.7]} 74. Bg4 {[%clk 0:00:21.2]} 74... Kd4 {[%clk 0:01:01.2]}
75. Bf5 {[%clk 0:00:18.4]} 1/2-1/2

[Event "Early-Titled-Tuesday-Blitz-March-12-2024"]
[Site "Chess.com"]
[Date "2024.03.12"]
[Round "5"]
[White "Mysterio47"]
[Black "Triumphmate"]
[Result "1-0"]
[WhiteElo "2754"]
[BlackElo "2524"]
[TimeControl "180+1"]
[EndTime "8:55:43 PDT"]
[Termination "Mysterio47 won on time"]

1. d4 {[%clk 0:03:00.9]} 1... d5 {[%clk 0:02:42.8]} 2. Nc3 {[%clk 0:02:54.7]}
2... f5 {[%clk 0:02:39.6]} 3. Bf4 {[%clk 0:02:53.2]} 3... e6 {[%clk 0:02:40.2]}
4. e3 {[%clk 0:02:49.3]} 4... Nf6 {[%clk 0:02:40.1]} 5. Nf3 {[%clk 0:02:49.5]}
5... Bd6 {[%clk 0:02:40.6]} 6. Bd3 {[%clk 0:02:45.1]} 6... O-O {[%clk
0:02:41.1]} 7. O-O {[%clk 0:02:45.6]} 7... b6 {[%clk 0:02:39.3]} 8. Ne2 {[%clk
0:02:31.5]} 8... Bb7 {[%clk 0:02:38.4]} 9. a4 {[%clk 0:02:30.7]} 9... c5 {[%clk
0:02:10.4]} 10. c3 {[%clk 0:02:29.5]} 10... Nc6 {[%clk 0:02:08.4]} 11. h3 {[%clk
0:02:24.4]} 11... Qe7 {[%clk 0:02:03]} 12. Bxd6 {[%clk 0:02:23.9]} 12... Qxd6
{[%clk 0:02:01.8]} 13. Nf4 {[%clk 0:02:24.8]} 13... Ne4 {[%clk 0:01:56.2]} 14.
Bb5 {[%clk 0:02:21.4]} 14... Rae8 {[%clk 0:01:36.3]} 15. Ne5 {[%clk 0:02:18]}
15... Nxe5 {[%clk 0:00:56.4]} 16. dxe5 {[%clk 0:02:14.3]} 16... Qxe5 {[%clk
0:00:57.3]} 17. Bxe8 {[%clk 0:02:13.8]} 17... Rxe8 {[%clk 0:00:58.2]} 18. Nd3
{[%clk 0:02:10.8]} 18... Qf6 {[%clk 0:00:57.4]} 19. f4 {[%clk 0:02:11.1]} 19...
Ba6 {[%clk 0:00:54.7]} 20. Re1 {[%clk 0:02:10.8]} 20... Bxd3 {[%clk 0:00:53.4]}
21. Qxd3 {[%clk 0:02:11.7]} 21... h6 {[%clk 0:00:49.4]} 22. a5 {[%clk
0:02:11.7]} 22... Kh7 {[%clk 0:00:42.3]} 23. axb6 {[%clk 0:02:11.4]} 23... axb6
{[%clk 0:00:43.2]} 24. Ra7 {[%clk 0:02:11.1]} 24... Qh4 {[%clk 0:00:41.9]} 25.
Rf1 {[%clk 0:02:10.9]} 25... Rf8 {[%clk 0:00:39.8]} 26. c4 {[%clk 0:02:01]}
26... dxc4 {[%clk 0:00:21.7]} 27. Qxc4 {[%clk 0:02:01.3]} 27... Rf6 {[%clk
0:00:22]} 28. Qc1 {[%clk 0:01:28.8]} 28... Rg6 {[%clk 0:00:18.3]} 29. Rf3 {[%clk
0:01:29.5]} 29... Ng3 {[%clk 0:00:15]} 30. Qe1 {[%clk 0:01:25.6]} 30... e5
{[%clk 0:00:11.4]} 31. fxe5 {[%clk 0:01:21]} 31... Qg5 {[%clk 0:00:08.5]} 32.
Ra2 {[%clk 0:01:04]} 32... Ne4 {[%clk 0:00:06.1]} 33. b3 {[%clk 0:01:04.4]}
33... Re6 {[%clk 0:00:03.9]} 34. Qa1 {[%clk 0:00:58.8]} 34... Qe7 {[%clk
0:00:03.4]} 35. Ra7 {[%clk 0:00:58.9]} 35... Qg5 {[%clk 0:00:03.3]} 36. Rf4
{[%clk 0:00:46.4]} 36... Ng3 {[%clk 0:00:02.5]} 37. Qb2 {[%clk 0:00:39.4]} 37...
Nh5 {[%clk 0:00:03.2]} 38. Rf3 {[%clk 0:00:38.9]} 38... b5 {[%clk 0:00:04.1]}
39. Rc7 {[%clk 0:00:36.2]} 39... Ng3 {[%clk 0:00:04.6]} 40. Rxc5 {[%clk
0:00:34.6]} 40... Ne4 {[%clk 0:00:04.9]} 41. Rc7 {[%clk 0:00:33]} 41... b4
{[%clk 0:00:04]} 42. Qd4 {[%clk 0:00:31.2]} 42... Rg6 {[%clk 0:00:04.4]} 43. Rc2
{[%clk 0:00:30.4]} 43... Ra6 {[%clk 0:00:04]} 44. Rf1 {[%clk 0:00:27.9]} 1-0